{"text_format":"3","workbook":"xlsx","n_sheets":3,"sheets":["Données de prospect","Ventes prévues ","Prévision pondérée mensuelle"],"not_rendered":{"charts":1,"defined_names":10},"read":"whole","date_system":"1900"}

{"sheet":"Données de prospect","index":0,"n_rows":9,"n_cols":10,"rows_kept":9}
[null,"Nom de la société"]
[null,"Suivi des prospects détaillé"]
[null,{"$f":"TODAY()","v":"2022-04-02"}]
[{"$nulls":8},{"$f":"Nom_de_la_société","v":"Nom de la société"},"CONFIDENTIEL"]
[null,"Nom du responsable","Contact du prospect","Prospect \nSource","Prospect \nRégion","Prospect \nType","Opportunité potentielle","Chance \nde vente","Prévision \nà court terme","Prévision \npondérée"]
[null,"A. Datum Corporation",{"$nulls":3},"Stratégique",{"v":300000,"d":"300,000.00 €"},{"v":0.9,"d":"90%"},"Janvier",{"$f":"IFERROR(IF(DonnéesDeProspect[[#This Row],[Chance \nde vente]]<>\"\",DonnéesDeProspect[[#This Row],[Chance \nde vente]]*DonnéesDeProspect[[#This Row],[Opportunité potentielle]],\"\"),\"\")","v":{"v":270000,"d":"270,000.00 €"}}]
[null,"Adventure Works",{"$nulls":3},"Stratégique",{"v":200000,"d":"200,000.00 €"},{"v":0.1,"d":"10%"},"Février",{"$f":"IFERROR(IF(DonnéesDeProspect[[#This Row],[Chance \nde vente]]<>\"\",DonnéesDeProspect[[#This Row],[Chance \nde vente]]*DonnéesDeProspect[[#This Row],[Opportunité potentielle]],\"\"),\"\")","v":{"v":20000,"d":"20,000.00 €"}}]
[null,"Alpine Ski House",{"$nulls":3},"Tactique",{"v":100000,"d":"100,000.00 €"},{"v":0.2,"d":"20%"},"Mars",{"$f":"IFERROR(IF(DonnéesDeProspect[[#This Row],[Chance \nde vente]]<>\"\",DonnéesDeProspect[[#This Row],[Chance \nde vente]]*DonnéesDeProspect[[#This Row],[Opportunité potentielle]],\"\"),\"\")","v":{"v":20000,"d":"20,000.00 €"}}]
[null,"Total",{"$nulls":4},{"$f":"SUBTOTAL(109,DonnéesDeProspect[Opportunité potentielle])","v":{"v":600000,"d":"600,000.00 €"}},null,null,{"$f":"SUBTOTAL(109,DonnéesDeProspect[Prévision \npondérée])","v":{"v":310000,"d":"310,000.00 €"}}]

{"sheet":"Ventes prévues ","index":1,"n_rows":21,"n_cols":14,"rows_kept":21,"merged":[[3,12,3,13]]}
[null,{"$f":"Nom_de_la_société","v":"Nom de la société"}]
[null,"Ventes prévues"]
[null,{"$f":"DateSuivi","v":"2022-04-02"}]
[{"$nulls":11},{"$f":"Nom_de_la_société","v":"Nom de la société"},"CONFIDENTIEL"]
[null,"Nom du prospect","Janvier \nPrévision","Février \nPrévision","Mars \nPrévision","Avril \nPrévision","Mai \nPrévision","Juin \nPrévision","Juillet\nPrévision","Août \nPrévision","Septembre \nPrévision","Octobre \nPrévision","Novembre \nPrévision","Décembre \nPrévision"]
[null,{"$f":"IFERROR(IF(AND(DonnéesDeProspect[[#This Row],[Nom du responsable]] <> \"\", ROW(VentesPrévues[Nom du prospect])<>DernièreEntrée),DonnéesDeProspect[Nom du responsable], \"\"),\"\")","v":"A. Datum Corporation"},{"$f":"IFERROR(IF(DonnéesDeProspect[[#This Row],[Prévision \nà court terme]] <>\"\",IF(DonnéesDeProspect[[#This Row],[Prévision \nà court terme]]= \"Janvier\",DonnéesDeProspect[Prévision \npondérée],0),\"\"),\"\")","v":{"v":270000,"d":"270,000 €"}},{"$f":"IFERROR(IF(DonnéesDeProspect[[#This Row],[Prévision \nà court terme]] <>\"\",IF(DonnéesDeProspect[[#This Row],[Prévision \nà court terme]] = \"Février\",DonnéesDeProspect[Prévision \npondérée],0),\"\"),\"\")","v":{"v":0,"d":"0 €"}},{"$f":"IFERROR(IF(DonnéesDeProspect[[#This Row],[Prévision \nà court terme]] <>\"\",IF(DonnéesDeProspect[[#This Row],[Prévision \nà court terme]] = \"Mars\",DonnéesDeProspect[Prévision \npondérée],0),\"\"),\"\")","v":{"v":0,"d":"0 €"}},{"$f":"IFERROR(IF(DonnéesDeProspect[[#This Row],[Prévision \nà court terme]] <>\"\",IF(DonnéesDeProspect[[#This Row],[Prévision \nà court terme]] = \"Avril\",DonnéesDeProspect[Prévision \npondérée],0),\"\"),\"\")","v":{"v":0,"d":"0 €"}},{"$f":"IFERROR(IF(DonnéesDeProspect[[#This Row],[Prévision \nà court terme]] <>\"\",IF(DonnéesDeProspect[[#This Row],[Prévision \nà court terme]] = \"Mai\",DonnéesDeProspect[Prévision \npondérée],0),\"\"),\"\")","v":{"v":0,"d":"0 €"}},{"$f":"IFERROR(IF(DonnéesDeProspect[[#This Row],[Prévision \nà court terme]] <>\"\",IF(DonnéesDeProspect[[#This Row],[Prévision \nà court terme]] = \"Juin\",DonnéesDeProspect[Prévision \npondérée],0),\"\"),\"\")","v":{"v":0,"d":"0 €"}},{"$f":"IFERROR(IF(DonnéesDeProspect[[#This Row],[Prévision \nà court terme]] <>\"\",IF(DonnéesDeProspect[[#This Row],[Prévision \nà court terme]] = \"Juillet\",DonnéesDeProspect[Prévision \npondérée],0),\"\"),\"\")","v":{"v":0,"d":"0 €"}},{"$f":"IFERROR(IF(DonnéesDeProspect[[#This Row],[Prévision \nà court terme]] <>\"\",IF(DonnéesDeProspect[[#This Row],[Prévision \nà court terme]] = \"Août\",DonnéesDeProspect[Prévision \npondérée],0),\"\"),\"\")","v":{"v":0,"d":"0 €"}},{"$f":"IFERROR(IF(DonnéesDeProspect[[#This Row],[Prévision \nà court terme]] <>\"\",IF(DonnéesDeProspect[[#This Row],[Prévision \nà court terme]] = \"Septembre\",DonnéesDeProspect[Prévision \npondérée],0),\"\"),\"\")","v":{"v":0,"d":"0 €"}},{"$f":"IFERROR(IF(DonnéesDeProspect[[#This Row],[Prévision \nà court terme]] <>\"\",IF(DonnéesDeProspect[[#This Row],[Prévision \nà court terme]] = \"Octobre\",DonnéesDeProspect[Prévision \npondérée],0),\"\"),\"\")","v":{"v":0,"d":"0 €"}},{"$f":"IFERROR(IF(DonnéesDeProspect[[#This Row],[Prévision \nà court terme]] <>\"\",IF(DonnéesDeProspect[[#This Row],[Prévision \nà court terme]] = \"Novembre\",DonnéesDeProspect[Prévision \npondérée],0),\"\"),\"\")","v":{"v":0,"d":"0 €"}},{"$f":"IFERROR(IF(DonnéesDeProspect[[#This Row],[Prévision \nà court terme]] <>\"\",IF(DonnéesDeProspect[[#This Row],[Prévision \nà court terme]] = \"Décembre\",DonnéesDeProspect[Prévision \npondérée],0),\"\"),\"\")","v":{"v":0,"d":"0 €"}}]
[null,{"$f":"IFERROR(IF(AND(DonnéesDeProspect[[#This Row],[Nom du responsable]] <> \"\", ROW(VentesPrévues[Nom du prospect])<>DernièreEntrée),DonnéesDeProspect[Nom du responsable], \"\"),\"\")","v":"Adventure Works"},{"$f":"IFERROR(IF(DonnéesDeProspect[[#This Row],[Prévision \nà court terme]] <>\"\",IF(DonnéesDeProspect[[#This Row],[Prévision \nà court terme]]= \"Janvier\",DonnéesDeProspect[Prévision \npondérée],0),\"\"),\"\")","v":{"v":0,"d":"0 €"}},{"$f":"IFERROR(IF(DonnéesDeProspect[[#This Row],[Prévision \nà court terme]] <>\"\",IF(DonnéesDeProspect[[#This Row],[Prévision \nà court terme]] = \"Février\",DonnéesDeProspect[Prévision \npondérée],0),\"\"),\"\")","v":{"v":20000,"d":"20,000 €"}},{"$f":"IFERROR(IF(DonnéesDeProspect[[#This Row],[Prévision \nà court terme]] <>\"\",IF(DonnéesDeProspect[[#This Row],[Prévision \nà court terme]] = \"Mars\",DonnéesDeProspect[Prévision \npondérée],0),\"\"),\"\")","v":{"v":0,"d":"0 €"}},{"$f":"IFERROR(IF(DonnéesDeProspect[[#This Row],[Prévision \nà court terme]] <>\"\",IF(DonnéesDeProspect[[#This Row],[Prévision \nà court terme]] = \"Avril\",DonnéesDeProspect[Prévision \npondérée],0),\"\"),\"\")","v":{"v":0,"d":"0 €"}},{"$f":"IFERROR(IF(DonnéesDeProspect[[#This Row],[Prévision \nà court terme]] <>\"\",IF(DonnéesDeProspect[[#This Row],[Prévision \nà court terme]] = \"Mai\",DonnéesDeProspect[Prévision \npondérée],0),\"\"),\"\")","v":{"v":0,"d":"0 €"}},{"$f":"IFERROR(IF(DonnéesDeProspect[[#This Row],[Prévision \nà court terme]] <>\"\",IF(DonnéesDeProspect[[#This Row],[Prévision \nà court terme]] = \"Juin\",DonnéesDeProspect[Prévision \npondérée],0),\"\"),\"\")","v":{"v":0,"d":"0 €"}},{"$f":"IFERROR(IF(DonnéesDeProspect[[#This Row],[Prévision \nà court terme]] <>\"\",IF(DonnéesDeProspect[[#This Row],[Prévision \nà court terme]] = \"Juillet\",DonnéesDeProspect[Prévision \npondérée],0),\"\"),\"\")","v":{"v":0,"d":"0 €"}},{"$f":"IFERROR(IF(DonnéesDeProspect[[#This Row],[Prévision \nà court terme]] <>\"\",IF(DonnéesDeProspect[[#This Row],[Prévision \nà court terme]] = \"Août\",DonnéesDeProspect[Prévision \npondérée],0),\"\"),\"\")","v":{"v":0,"d":"0 €"}},{"$f":"IFERROR(IF(DonnéesDeProspect[[#This Row],[Prévision \nà court terme]] <>\"\",IF(DonnéesDeProspect[[#This Row],[Prévision \nà court terme]] = \"Septembre\",DonnéesDeProspect[Prévision \npondérée],0),\"\"),\"\")","v":{"v":0,"d":"0 €"}},{"$f":"IFERROR(IF(DonnéesDeProspect[[#This Row],[Prévision \nà court terme]] <>\"\",IF(DonnéesDeProspect[[#This Row],[Prévision \nà court terme]] = \"Octobre\",DonnéesDeProspect[Prévision \npondérée],0),\"\"),\"\")","v":{"v":0,"d":"0 €"}},{"$f":"IFERROR(IF(DonnéesDeProspect[[#This Row],[Prévision \nà court terme]] <>\"\",IF(DonnéesDeProspect[[#This Row],[Prévision \nà court terme]] = \"Novembre\",DonnéesDeProspect[Prévision \npondérée],0),\"\"),\"\")","v":{"v":0,"d":"0 €"}},{"$f":"IFERROR(IF(DonnéesDeProspect[[#This Row],[Prévision \nà court terme]] <>\"\",IF(DonnéesDeProspect[[#This Row],[Prévision \nà court terme]] = \"Décembre\",DonnéesDeProspect[Prévision \npondérée],0),\"\"),\"\")","v":{"v":0,"d":"0 €"}}]
[null,{"$f":"IFERROR(IF(AND(DonnéesDeProspect[[#This Row],[Nom du responsable]] <> \"\", ROW(VentesPrévues[Nom du prospect])<>DernièreEntrée),DonnéesDeProspect[Nom du responsable], \"\"),\"\")","v":"Alpine Ski House"},{"$f":"IFERROR(IF(DonnéesDeProspect[[#This Row],[Prévision \nà court terme]] <>\"\",IF(DonnéesDeProspect[[#This Row],[Prévision \nà court terme]]= \"Janvier\",DonnéesDeProspect[Prévision \npondérée],0),\"\"),\"\")","v":{"v":0,"d":"0 €"}},{"$f":"IFERROR(IF(DonnéesDeProspect[[#This Row],[Prévision \nà court terme]] <>\"\",IF(DonnéesDeProspect[[#This Row],[Prévision \nà court terme]] = \"Février\",DonnéesDeProspect[Prévision \npondérée],0),\"\"),\"\")","v":{"v":0,"d":"0 €"}},{"$f":"IFERROR(IF(DonnéesDeProspect[[#This Row],[Prévision \nà court terme]] <>\"\",IF(DonnéesDeProspect[[#This Row],[Prévision \nà court terme]] = \"Mars\",DonnéesDeProspect[Prévision \npondérée],0),\"\"),\"\")","v":{"v":20000,"d":"20,000 €"}},{"$f":"IFERROR(IF(DonnéesDeProspect[[#This Row],[Prévision \nà court terme]] <>\"\",IF(DonnéesDeProspect[[#This Row],[Prévision \nà court terme]] = \"Avril\",DonnéesDeProspect[Prévision \npondérée],0),\"\"),\"\")","v":{"v":0,"d":"0 €"}},{"$f":"IFERROR(IF(DonnéesDeProspect[[#This Row],[Prévision \nà court terme]] <>\"\",IF(DonnéesDeProspect[[#This Row],[Prévision \nà court terme]] = \"Mai\",DonnéesDeProspect[Prévision \npondérée],0),\"\"),\"\")","v":{"v":0,"d":"0 €"}},{"$f":"IFERROR(IF(DonnéesDeProspect[[#This Row],[Prévision \nà court terme]] <>\"\",IF(DonnéesDeProspect[[#This Row],[Prévision \nà court terme]] = \"Juin\",DonnéesDeProspect[Prévision \npondérée],0),\"\"),\"\")","v":{"v":0,"d":"0 €"}},{"$f":"IFERROR(IF(DonnéesDeProspect[[#This Row],[Prévision \nà court terme]] <>\"\",IF(DonnéesDeProspect[[#This Row],[Prévision \nà court terme]] = \"Juillet\",DonnéesDeProspect[Prévision \npondérée],0),\"\"),\"\")","v":{"v":0,"d":"0 €"}},{"$f":"IFERROR(IF(DonnéesDeProspect[[#This Row],[Prévision \nà court terme]] <>\"\",IF(DonnéesDeProspect[[#This Row],[Prévision \nà court terme]] = \"Août\",DonnéesDeProspect[Prévision \npondérée],0),\"\"),\"\")","v":{"v":0,"d":"0 €"}},{"$f":"IFERROR(IF(DonnéesDeProspect[[#This Row],[Prévision \nà court terme]] <>\"\",IF(DonnéesDeProspect[[#This Row],[Prévision \nà court terme]] = \"Septembre\",DonnéesDeProspect[Prévision \npondérée],0),\"\"),\"\")","v":{"v":0,"d":"0 €"}},{"$f":"IFERROR(IF(DonnéesDeProspect[[#This Row],[Prévision \nà court terme]] <>\"\",IF(DonnéesDeProspect[[#This Row],[Prévision \nà court terme]] = \"Octobre\",DonnéesDeProspect[Prévision \npondérée],0),\"\"),\"\")","v":{"v":0,"d":"0 €"}},{"$f":"IFERROR(IF(DonnéesDeProspect[[#This Row],[Prévision \nà court terme]] <>\"\",IF(DonnéesDeProspect[[#This Row],[Prévision \nà court terme]] = \"Novembre\",DonnéesDeProspect[Prévision \npondérée],0),\"\"),\"\")","v":{"v":0,"d":"0 €"}},{"$f":"IFERROR(IF(DonnéesDeProspect[[#This Row],[Prévision \nà court terme]] <>\"\",IF(DonnéesDeProspect[[#This Row],[Prévision \nà court terme]] = \"Décembre\",DonnéesDeProspect[Prévision \npondérée],0),\"\"),\"\")","v":{"v":0,"d":"0 €"}}]
[null,{"$f":"IFERROR(IF(AND(DonnéesDeProspect[[#This Row],[Nom du responsable]] <> \"\", ROW(VentesPrévues[Nom du prospect])<>DernièreEntrée),DonnéesDeProspect[Nom du responsable], \"\"),\"\")","v":""},{"$f":"IFERROR(IF(DonnéesDeProspect[[#This Row],[Prévision \nà court terme]] <>\"\",IF(DonnéesDeProspect[[#This Row],[Prévision \nà court terme]]= \"Janvier\",DonnéesDeProspect[Prévision \npondérée],0),\"\"),\"\")","v":""},{"$f":"IFERROR(IF(DonnéesDeProspect[[#This Row],[Prévision \nà court terme]] <>\"\",IF(DonnéesDeProspect[[#This Row],[Prévision \nà court terme]] = \"Février\",DonnéesDeProspect[Prévision \npondérée],0),\"\"),\"\")","v":""},{"$f":"IFERROR(IF(DonnéesDeProspect[[#This Row],[Prévision \nà court terme]] <>\"\",IF(DonnéesDeProspect[[#This Row],[Prévision \nà court terme]] = \"Mars\",DonnéesDeProspect[Prévision \npondérée],0),\"\"),\"\")","v":""},{"$f":"IFERROR(IF(DonnéesDeProspect[[#This Row],[Prévision \nà court terme]] <>\"\",IF(DonnéesDeProspect[[#This Row],[Prévision \nà court terme]] = \"Avril\",DonnéesDeProspect[Prévision \npondérée],0),\"\"),\"\")","v":""},{"$f":"IFERROR(IF(DonnéesDeProspect[[#This Row],[Prévision \nà court terme]] <>\"\",IF(DonnéesDeProspect[[#This Row],[Prévision \nà court terme]] = \"Mai\",DonnéesDeProspect[Prévision \npondérée],0),\"\"),\"\")","v":""},{"$f":"IFERROR(IF(DonnéesDeProspect[[#This Row],[Prévision \nà court terme]] <>\"\",IF(DonnéesDeProspect[[#This Row],[Prévision \nà court terme]] = \"Juin\",DonnéesDeProspect[Prévision \npondérée],0),\"\"),\"\")","v":""},{"$f":"IFERROR(IF(DonnéesDeProspect[[#This Row],[Prévision \nà court terme]] <>\"\",IF(DonnéesDeProspect[[#This Row],[Prévision \nà court terme]] = \"Juillet\",DonnéesDeProspect[Prévision \npondérée],0),\"\"),\"\")","v":""},{"$f":"IFERROR(IF(DonnéesDeProspect[[#This Row],[Prévision \nà court terme]] <>\"\",IF(DonnéesDeProspect[[#This Row],[Prévision \nà court terme]] = \"Août\",DonnéesDeProspect[Prévision \npondérée],0),\"\"),\"\")","v":""},{"$f":"IFERROR(IF(DonnéesDeProspect[[#This Row],[Prévision \nà court terme]] <>\"\",IF(DonnéesDeProspect[[#This Row],[Prévision \nà court terme]] = \"Septembre\",DonnéesDeProspect[Prévision \npondérée],0),\"\"),\"\")","v":""},{"$f":"IFERROR(IF(DonnéesDeProspect[[#This Row],[Prévision \nà court terme]] <>\"\",IF(DonnéesDeProspect[[#This Row],[Prévision \nà court terme]] = \"Octobre\",DonnéesDeProspect[Prévision \npondérée],0),\"\"),\"\")","v":""},{"$f":"IFERROR(IF(DonnéesDeProspect[[#This Row],[Prévision \nà court terme]] <>\"\",IF(DonnéesDeProspect[[#This Row],[Prévision \nà court terme]] = \"Novembre\",DonnéesDeProspect[Prévision \npondérée],0),\"\"),\"\")","v":""},{"$f":"IFERROR(IF(DonnéesDeProspect[[#This Row],[Prévision \nà court terme]] <>\"\",IF(DonnéesDeProspect[[#This Row],[Prévision \nà court terme]] = \"Décembre\",DonnéesDeProspect[Prévision \npondérée],0),\"\"),\"\")","v":""}]
[null,{"$f":"IFERROR(IF(AND(DonnéesDeProspect[[#This Row],[Nom du responsable]] <> \"\", ROW(VentesPrévues[Nom du prospect])<>DernièreEntrée),DonnéesDeProspect[Nom du responsable], \"\"),\"\")","v":""},{"$f":"IFERROR(IF(DonnéesDeProspect[[#This Row],[Prévision \nà court terme]] <>\"\",IF(DonnéesDeProspect[[#This Row],[Prévision \nà court terme]]= \"Janvier\",DonnéesDeProspect[Prévision \npondérée],0),\"\"),\"\")","v":""},{"$f":"IFERROR(IF(DonnéesDeProspect[[#This Row],[Prévision \nà court terme]] <>\"\",IF(DonnéesDeProspect[[#This Row],[Prévision \nà court terme]] = \"Février\",DonnéesDeProspect[Prévision \npondérée],0),\"\"),\"\")","v":""},{"$f":"IFERROR(IF(DonnéesDeProspect[[#This Row],[Prévision \nà court terme]] <>\"\",IF(DonnéesDeProspect[[#This Row],[Prévision \nà court terme]] = \"Mars\",DonnéesDeProspect[Prévision \npondérée],0),\"\"),\"\")","v":""},{"$f":"IFERROR(IF(DonnéesDeProspect[[#This Row],[Prévision \nà court terme]] <>\"\",IF(DonnéesDeProspect[[#This Row],[Prévision \nà court terme]] = \"Avril\",DonnéesDeProspect[Prévision \npondérée],0),\"\"),\"\")","v":""},{"$f":"IFERROR(IF(DonnéesDeProspect[[#This Row],[Prévision \nà court terme]] <>\"\",IF(DonnéesDeProspect[[#This Row],[Prévision \nà court terme]] = \"Mai\",DonnéesDeProspect[Prévision \npondérée],0),\"\"),\"\")","v":""},{"$f":"IFERROR(IF(DonnéesDeProspect[[#This Row],[Prévision \nà court terme]] <>\"\",IF(DonnéesDeProspect[[#This Row],[Prévision \nà court terme]] = \"Juin\",DonnéesDeProspect[Prévision \npondérée],0),\"\"),\"\")","v":""},{"$f":"IFERROR(IF(DonnéesDeProspect[[#This Row],[Prévision \nà court terme]] <>\"\",IF(DonnéesDeProspect[[#This Row],[Prévision \nà court terme]] = \"Juillet\",DonnéesDeProspect[Prévision \npondérée],0),\"\"),\"\")","v":""},{"$f":"IFERROR(IF(DonnéesDeProspect[[#This Row],[Prévision \nà court terme]] <>\"\",IF(DonnéesDeProspect[[#This Row],[Prévision \nà court terme]] = \"Août\",DonnéesDeProspect[Prévision \npondérée],0),\"\"),\"\")","v":""},{"$f":"IFERROR(IF(DonnéesDeProspect[[#This Row],[Prévision \nà court terme]] <>\"\",IF(DonnéesDeProspect[[#This Row],[Prévision \nà court terme]] = \"Septembre\",DonnéesDeProspect[Prévision \npondérée],0),\"\"),\"\")","v":""},{"$f":"IFERROR(IF(DonnéesDeProspect[[#This Row],[Prévision \nà court terme]] <>\"\",IF(DonnéesDeProspect[[#This Row],[Prévision \nà court terme]] = \"Octobre\",DonnéesDeProspect[Prévision \npondérée],0),\"\"),\"\")","v":""},{"$f":"IFERROR(IF(DonnéesDeProspect[[#This Row],[Prévision \nà court terme]] <>\"\",IF(DonnéesDeProspect[[#This Row],[Prévision \nà court terme]] = \"Novembre\",DonnéesDeProspect[Prévision \npondérée],0),\"\"),\"\")","v":""},{"$f":"IFERROR(IF(DonnéesDeProspect[[#This Row],[Prévision \nà court terme]] <>\"\",IF(DonnéesDeProspect[[#This Row],[Prévision \nà court terme]] = \"Décembre\",DonnéesDeProspect[Prévision \npondérée],0),\"\"),\"\")","v":""}]
[null,{"$f":"IFERROR(IF(AND(DonnéesDeProspect[[#This Row],[Nom du responsable]] <> \"\", ROW(VentesPrévues[Nom du prospect])<>DernièreEntrée),DonnéesDeProspect[Nom du responsable], \"\"),\"\")","v":""},{"$f":"IFERROR(IF(DonnéesDeProspect[[#This Row],[Prévision \nà court terme]] <>\"\",IF(DonnéesDeProspect[[#This Row],[Prévision \nà court terme]]= \"Janvier\",DonnéesDeProspect[Prévision \npondérée],0),\"\"),\"\")","v":""},{"$f":"IFERROR(IF(DonnéesDeProspect[[#This Row],[Prévision \nà court terme]] <>\"\",IF(DonnéesDeProspect[[#This Row],[Prévision \nà court terme]] = \"Février\",DonnéesDeProspect[Prévision \npondérée],0),\"\"),\"\")","v":""},{"$f":"IFERROR(IF(DonnéesDeProspect[[#This Row],[Prévision \nà court terme]] <>\"\",IF(DonnéesDeProspect[[#This Row],[Prévision \nà court terme]] = \"Mars\",DonnéesDeProspect[Prévision \npondérée],0),\"\"),\"\")","v":""},{"$f":"IFERROR(IF(DonnéesDeProspect[[#This Row],[Prévision \nà court terme]] <>\"\",IF(DonnéesDeProspect[[#This Row],[Prévision \nà court terme]] = \"Avril\",DonnéesDeProspect[Prévision \npondérée],0),\"\"),\"\")","v":""},{"$f":"IFERROR(IF(DonnéesDeProspect[[#This Row],[Prévision \nà court terme]] <>\"\",IF(DonnéesDeProspect[[#This Row],[Prévision \nà court terme]] = \"Mai\",DonnéesDeProspect[Prévision \npondérée],0),\"\"),\"\")","v":""},{"$f":"IFERROR(IF(DonnéesDeProspect[[#This Row],[Prévision \nà court terme]] <>\"\",IF(DonnéesDeProspect[[#This Row],[Prévision \nà court terme]] = \"Juin\",DonnéesDeProspect[Prévision \npondérée],0),\"\"),\"\")","v":""},{"$f":"IFERROR(IF(DonnéesDeProspect[[#This Row],[Prévision \nà court terme]] <>\"\",IF(DonnéesDeProspect[[#This Row],[Prévision \nà court terme]] = \"Juillet\",DonnéesDeProspect[Prévision \npondérée],0),\"\"),\"\")","v":""},{"$f":"IFERROR(IF(DonnéesDeProspect[[#This Row],[Prévision \nà court terme]] <>\"\",IF(DonnéesDeProspect[[#This Row],[Prévision \nà court terme]] = \"Août\",DonnéesDeProspect[Prévision \npondérée],0),\"\"),\"\")","v":""},{"$f":"IFERROR(IF(DonnéesDeProspect[[#This Row],[Prévision \nà court terme]] <>\"\",IF(DonnéesDeProspect[[#This Row],[Prévision \nà court terme]] = \"Septembre\",DonnéesDeProspect[Prévision \npondérée],0),\"\"),\"\")","v":""},{"$f":"IFERROR(IF(DonnéesDeProspect[[#This Row],[Prévision \nà court terme]] <>\"\",IF(DonnéesDeProspect[[#This Row],[Prévision \nà court terme]] = \"Octobre\",DonnéesDeProspect[Prévision \npondérée],0),\"\"),\"\")","v":""},{"$f":"IFERROR(IF(DonnéesDeProspect[[#This Row],[Prévision \nà court terme]] <>\"\",IF(DonnéesDeProspect[[#This Row],[Prévision \nà court terme]] = \"Novembre\",DonnéesDeProspect[Prévision \npondérée],0),\"\"),\"\")","v":""},{"$f":"IFERROR(IF(DonnéesDeProspect[[#This Row],[Prévision \nà court terme]] <>\"\",IF(DonnéesDeProspect[[#This Row],[Prévision \nà court terme]] = \"Décembre\",DonnéesDeProspect[Prévision \npondérée],0),\"\"),\"\")","v":""}]
[null,{"$f":"IFERROR(IF(AND(DonnéesDeProspect[[#This Row],[Nom du responsable]] <> \"\", ROW(VentesPrévues[Nom du prospect])<>DernièreEntrée),DonnéesDeProspect[Nom du responsable], \"\"),\"\")","v":""},{"$f":"IFERROR(IF(DonnéesDeProspect[[#This Row],[Prévision \nà court terme]] <>\"\",IF(DonnéesDeProspect[[#This Row],[Prévision \nà court terme]]= \"Janvier\",DonnéesDeProspect[Prévision \npondérée],0),\"\"),\"\")","v":""},{"$f":"IFERROR(IF(DonnéesDeProspect[[#This Row],[Prévision \nà court terme]] <>\"\",IF(DonnéesDeProspect[[#This Row],[Prévision \nà court terme]] = \"Février\",DonnéesDeProspect[Prévision \npondérée],0),\"\"),\"\")","v":""},{"$f":"IFERROR(IF(DonnéesDeProspect[[#This Row],[Prévision \nà court terme]] <>\"\",IF(DonnéesDeProspect[[#This Row],[Prévision \nà court terme]] = \"Mars\",DonnéesDeProspect[Prévision \npondérée],0),\"\"),\"\")","v":""},{"$f":"IFERROR(IF(DonnéesDeProspect[[#This Row],[Prévision \nà court terme]] <>\"\",IF(DonnéesDeProspect[[#This Row],[Prévision \nà court terme]] = \"Avril\",DonnéesDeProspect[Prévision \npondérée],0),\"\"),\"\")","v":""},{"$f":"IFERROR(IF(DonnéesDeProspect[[#This Row],[Prévision \nà court terme]] <>\"\",IF(DonnéesDeProspect[[#This Row],[Prévision \nà court terme]] = \"Mai\",DonnéesDeProspect[Prévision \npondérée],0),\"\"),\"\")","v":""},{"$f":"IFERROR(IF(DonnéesDeProspect[[#This Row],[Prévision \nà court terme]] <>\"\",IF(DonnéesDeProspect[[#This Row],[Prévision \nà court terme]] = \"Juin\",DonnéesDeProspect[Prévision \npondérée],0),\"\"),\"\")","v":""},{"$f":"IFERROR(IF(DonnéesDeProspect[[#This Row],[Prévision \nà court terme]] <>\"\",IF(DonnéesDeProspect[[#This Row],[Prévision \nà court terme]] = \"Juillet\",DonnéesDeProspect[Prévision \npondérée],0),\"\"),\"\")","v":""},{"$f":"IFERROR(IF(DonnéesDeProspect[[#This Row],[Prévision \nà court terme]] <>\"\",IF(DonnéesDeProspect[[#This Row],[Prévision \nà court terme]] = \"Août\",DonnéesDeProspect[Prévision \npondérée],0),\"\"),\"\")","v":""},{"$f":"IFERROR(IF(DonnéesDeProspect[[#This Row],[Prévision \nà court terme]] <>\"\",IF(DonnéesDeProspect[[#This Row],[Prévision \nà court terme]] = \"Septembre\",DonnéesDeProspect[Prévision \npondérée],0),\"\"),\"\")","v":""},{"$f":"IFERROR(IF(DonnéesDeProspect[[#This Row],[Prévision \nà court terme]] <>\"\",IF(DonnéesDeProspect[[#This Row],[Prévision \nà court terme]] = \"Octobre\",DonnéesDeProspect[Prévision \npondérée],0),\"\"),\"\")","v":""},{"$f":"IFERROR(IF(DonnéesDeProspect[[#This Row],[Prévision \nà court terme]] <>\"\",IF(DonnéesDeProspect[[#This Row],[Prévision \nà court terme]] = \"Novembre\",DonnéesDeProspect[Prévision \npondérée],0),\"\"),\"\")","v":""},{"$f":"IFERROR(IF(DonnéesDeProspect[[#This Row],[Prévision \nà court terme]] <>\"\",IF(DonnéesDeProspect[[#This Row],[Prévision \nà court terme]] = \"Décembre\",DonnéesDeProspect[Prévision \npondérée],0),\"\"),\"\")","v":""}]
[null,{"$f":"IFERROR(IF(AND(DonnéesDeProspect[[#This Row],[Nom du responsable]] <> \"\", ROW(VentesPrévues[Nom du prospect])<>DernièreEntrée),DonnéesDeProspect[Nom du responsable], \"\"),\"\")","v":""},{"$f":"IFERROR(IF(DonnéesDeProspect[[#This Row],[Prévision \nà court terme]] <>\"\",IF(DonnéesDeProspect[[#This Row],[Prévision \nà court terme]]= \"Janvier\",DonnéesDeProspect[Prévision \npondérée],0),\"\"),\"\")","v":""},{"$f":"IFERROR(IF(DonnéesDeProspect[[#This Row],[Prévision \nà court terme]] <>\"\",IF(DonnéesDeProspect[[#This Row],[Prévision \nà court terme]] = \"Février\",DonnéesDeProspect[Prévision \npondérée],0),\"\"),\"\")","v":""},{"$f":"IFERROR(IF(DonnéesDeProspect[[#This Row],[Prévision \nà court terme]] <>\"\",IF(DonnéesDeProspect[[#This Row],[Prévision \nà court terme]] = \"Mars\",DonnéesDeProspect[Prévision \npondérée],0),\"\"),\"\")","v":""},{"$f":"IFERROR(IF(DonnéesDeProspect[[#This Row],[Prévision \nà court terme]] <>\"\",IF(DonnéesDeProspect[[#This Row],[Prévision \nà court terme]] = \"Avril\",DonnéesDeProspect[Prévision \npondérée],0),\"\"),\"\")","v":""},{"$f":"IFERROR(IF(DonnéesDeProspect[[#This Row],[Prévision \nà court terme]] <>\"\",IF(DonnéesDeProspect[[#This Row],[Prévision \nà court terme]] = \"Mai\",DonnéesDeProspect[Prévision \npondérée],0),\"\"),\"\")","v":""},{"$f":"IFERROR(IF(DonnéesDeProspect[[#This Row],[Prévision \nà court terme]] <>\"\",IF(DonnéesDeProspect[[#This Row],[Prévision \nà court terme]] = \"Juin\",DonnéesDeProspect[Prévision \npondérée],0),\"\"),\"\")","v":""},{"$f":"IFERROR(IF(DonnéesDeProspect[[#This Row],[Prévision \nà court terme]] <>\"\",IF(DonnéesDeProspect[[#This Row],[Prévision \nà court terme]] = \"Juillet\",DonnéesDeProspect[Prévision \npondérée],0),\"\"),\"\")","v":""},{"$f":"IFERROR(IF(DonnéesDeProspect[[#This Row],[Prévision \nà court terme]] <>\"\",IF(DonnéesDeProspect[[#This Row],[Prévision \nà court terme]] = \"Août\",DonnéesDeProspect[Prévision \npondérée],0),\"\"),\"\")","v":""},{"$f":"IFERROR(IF(DonnéesDeProspect[[#This Row],[Prévision \nà court terme]] <>\"\",IF(DonnéesDeProspect[[#This Row],[Prévision \nà court terme]] = \"Septembre\",DonnéesDeProspect[Prévision \npondérée],0),\"\"),\"\")","v":""},{"$f":"IFERROR(IF(DonnéesDeProspect[[#This Row],[Prévision \nà court terme]] <>\"\",IF(DonnéesDeProspect[[#This Row],[Prévision \nà court terme]] = \"Octobre\",DonnéesDeProspect[Prévision \npondérée],0),\"\"),\"\")","v":""},{"$f":"IFERROR(IF(DonnéesDeProspect[[#This Row],[Prévision \nà court terme]] <>\"\",IF(DonnéesDeProspect[[#This Row],[Prévision \nà court terme]] = \"Novembre\",DonnéesDeProspect[Prévision \npondérée],0),\"\"),\"\")","v":""},{"$f":"IFERROR(IF(DonnéesDeProspect[[#This Row],[Prévision \nà court terme]] <>\"\",IF(DonnéesDeProspect[[#This Row],[Prévision \nà court terme]] = \"Décembre\",DonnéesDeProspect[Prévision \npondérée],0),\"\"),\"\")","v":""}]
[null,{"$f":"IFERROR(IF(AND(DonnéesDeProspect[[#This Row],[Nom du responsable]] <> \"\", ROW(VentesPrévues[Nom du prospect])<>DernièreEntrée),DonnéesDeProspect[Nom du responsable], \"\"),\"\")","v":""},{"$f":"IFERROR(IF(DonnéesDeProspect[[#This Row],[Prévision \nà court terme]] <>\"\",IF(DonnéesDeProspect[[#This Row],[Prévision \nà court terme]]= \"Janvier\",DonnéesDeProspect[Prévision \npondérée],0),\"\"),\"\")","v":""},{"$f":"IFERROR(IF(DonnéesDeProspect[[#This Row],[Prévision \nà court terme]] <>\"\",IF(DonnéesDeProspect[[#This Row],[Prévision \nà court terme]] = \"Février\",DonnéesDeProspect[Prévision \npondérée],0),\"\"),\"\")","v":""},{"$f":"IFERROR(IF(DonnéesDeProspect[[#This Row],[Prévision \nà court terme]] <>\"\",IF(DonnéesDeProspect[[#This Row],[Prévision \nà court terme]] = \"Mars\",DonnéesDeProspect[Prévision \npondérée],0),\"\"),\"\")","v":""},{"$f":"IFERROR(IF(DonnéesDeProspect[[#This Row],[Prévision \nà court terme]] <>\"\",IF(DonnéesDeProspect[[#This Row],[Prévision \nà court terme]] = \"Avril\",DonnéesDeProspect[Prévision \npondérée],0),\"\"),\"\")","v":""},{"$f":"IFERROR(IF(DonnéesDeProspect[[#This Row],[Prévision \nà court terme]] <>\"\",IF(DonnéesDeProspect[[#This Row],[Prévision \nà court terme]] = \"Mai\",DonnéesDeProspect[Prévision \npondérée],0),\"\"),\"\")","v":""},{"$f":"IFERROR(IF(DonnéesDeProspect[[#This Row],[Prévision \nà court terme]] <>\"\",IF(DonnéesDeProspect[[#This Row],[Prévision \nà court terme]] = \"Juin\",DonnéesDeProspect[Prévision \npondérée],0),\"\"),\"\")","v":""},{"$f":"IFERROR(IF(DonnéesDeProspect[[#This Row],[Prévision \nà court terme]] <>\"\",IF(DonnéesDeProspect[[#This Row],[Prévision \nà court terme]] = \"Juillet\",DonnéesDeProspect[Prévision \npondérée],0),\"\"),\"\")","v":""},{"$f":"IFERROR(IF(DonnéesDeProspect[[#This Row],[Prévision \nà court terme]] <>\"\",IF(DonnéesDeProspect[[#This Row],[Prévision \nà court terme]] = \"Août\",DonnéesDeProspect[Prévision \npondérée],0),\"\"),\"\")","v":""},{"$f":"IFERROR(IF(DonnéesDeProspect[[#This Row],[Prévision \nà court terme]] <>\"\",IF(DonnéesDeProspect[[#This Row],[Prévision \nà court terme]] = \"Septembre\",DonnéesDeProspect[Prévision \npondérée],0),\"\"),\"\")","v":""},{"$f":"IFERROR(IF(DonnéesDeProspect[[#This Row],[Prévision \nà court terme]] <>\"\",IF(DonnéesDeProspect[[#This Row],[Prévision \nà court terme]] = \"Octobre\",DonnéesDeProspect[Prévision \npondérée],0),\"\"),\"\")","v":""},{"$f":"IFERROR(IF(DonnéesDeProspect[[#This Row],[Prévision \nà court terme]] <>\"\",IF(DonnéesDeProspect[[#This Row],[Prévision \nà court terme]] = \"Novembre\",DonnéesDeProspect[Prévision \npondérée],0),\"\"),\"\")","v":""},{"$f":"IFERROR(IF(DonnéesDeProspect[[#This Row],[Prévision \nà court terme]] <>\"\",IF(DonnéesDeProspect[[#This Row],[Prévision \nà court terme]] = \"Décembre\",DonnéesDeProspect[Prévision \npondérée],0),\"\"),\"\")","v":""}]
[null,{"$f":"IFERROR(IF(AND(DonnéesDeProspect[[#This Row],[Nom du responsable]] <> \"\", ROW(VentesPrévues[Nom du prospect])<>DernièreEntrée),DonnéesDeProspect[Nom du responsable], \"\"),\"\")","v":""},{"$f":"IFERROR(IF(DonnéesDeProspect[[#This Row],[Prévision \nà court terme]] <>\"\",IF(DonnéesDeProspect[[#This Row],[Prévision \nà court terme]]= \"Janvier\",DonnéesDeProspect[Prévision \npondérée],0),\"\"),\"\")","v":""},{"$f":"IFERROR(IF(DonnéesDeProspect[[#This Row],[Prévision \nà court terme]] <>\"\",IF(DonnéesDeProspect[[#This Row],[Prévision \nà court terme]] = \"Février\",DonnéesDeProspect[Prévision \npondérée],0),\"\"),\"\")","v":""},{"$f":"IFERROR(IF(DonnéesDeProspect[[#This Row],[Prévision \nà court terme]] <>\"\",IF(DonnéesDeProspect[[#This Row],[Prévision \nà court terme]] = \"Mars\",DonnéesDeProspect[Prévision \npondérée],0),\"\"),\"\")","v":""},{"$f":"IFERROR(IF(DonnéesDeProspect[[#This Row],[Prévision \nà court terme]] <>\"\",IF(DonnéesDeProspect[[#This Row],[Prévision \nà court terme]] = \"Avril\",DonnéesDeProspect[Prévision \npondérée],0),\"\"),\"\")","v":""},{"$f":"IFERROR(IF(DonnéesDeProspect[[#This Row],[Prévision \nà court terme]] <>\"\",IF(DonnéesDeProspect[[#This Row],[Prévision \nà court terme]] = \"Mai\",DonnéesDeProspect[Prévision \npondérée],0),\"\"),\"\")","v":""},{"$f":"IFERROR(IF(DonnéesDeProspect[[#This Row],[Prévision \nà court terme]] <>\"\",IF(DonnéesDeProspect[[#This Row],[Prévision \nà court terme]] = \"Juin\",DonnéesDeProspect[Prévision \npondérée],0),\"\"),\"\")","v":""},{"$f":"IFERROR(IF(DonnéesDeProspect[[#This Row],[Prévision \nà court terme]] <>\"\",IF(DonnéesDeProspect[[#This Row],[Prévision \nà court terme]] = \"Juillet\",DonnéesDeProspect[Prévision \npondérée],0),\"\"),\"\")","v":""},{"$f":"IFERROR(IF(DonnéesDeProspect[[#This Row],[Prévision \nà court terme]] <>\"\",IF(DonnéesDeProspect[[#This Row],[Prévision \nà court terme]] = \"Août\",DonnéesDeProspect[Prévision \npondérée],0),\"\"),\"\")","v":""},{"$f":"IFERROR(IF(DonnéesDeProspect[[#This Row],[Prévision \nà court terme]] <>\"\",IF(DonnéesDeProspect[[#This Row],[Prévision \nà court terme]] = \"Septembre\",DonnéesDeProspect[Prévision \npondérée],0),\"\"),\"\")","v":""},{"$f":"IFERROR(IF(DonnéesDeProspect[[#This Row],[Prévision \nà court terme]] <>\"\",IF(DonnéesDeProspect[[#This Row],[Prévision \nà court terme]] = \"Octobre\",DonnéesDeProspect[Prévision \npondérée],0),\"\"),\"\")","v":""},{"$f":"IFERROR(IF(DonnéesDeProspect[[#This Row],[Prévision \nà court terme]] <>\"\",IF(DonnéesDeProspect[[#This Row],[Prévision \nà court terme]] = \"Novembre\",DonnéesDeProspect[Prévision \npondérée],0),\"\"),\"\")","v":""},{"$f":"IFERROR(IF(DonnéesDeProspect[[#This Row],[Prévision \nà court terme]] <>\"\",IF(DonnéesDeProspect[[#This Row],[Prévision \nà court terme]] = \"Décembre\",DonnéesDeProspect[Prévision \npondérée],0),\"\"),\"\")","v":""}]
[null,{"$f":"IFERROR(IF(AND(DonnéesDeProspect[[#This Row],[Nom du responsable]] <> \"\", ROW(VentesPrévues[Nom du prospect])<>DernièreEntrée),DonnéesDeProspect[Nom du responsable], \"\"),\"\")","v":""},{"$f":"IFERROR(IF(DonnéesDeProspect[[#This Row],[Prévision \nà court terme]] <>\"\",IF(DonnéesDeProspect[[#This Row],[Prévision \nà court terme]]= \"Janvier\",DonnéesDeProspect[Prévision \npondérée],0),\"\"),\"\")","v":""},{"$f":"IFERROR(IF(DonnéesDeProspect[[#This Row],[Prévision \nà court terme]] <>\"\",IF(DonnéesDeProspect[[#This Row],[Prévision \nà court terme]] = \"Février\",DonnéesDeProspect[Prévision \npondérée],0),\"\"),\"\")","v":""},{"$f":"IFERROR(IF(DonnéesDeProspect[[#This Row],[Prévision \nà court terme]] <>\"\",IF(DonnéesDeProspect[[#This Row],[Prévision \nà court terme]] = \"Mars\",DonnéesDeProspect[Prévision \npondérée],0),\"\"),\"\")","v":""},{"$f":"IFERROR(IF(DonnéesDeProspect[[#This Row],[Prévision \nà court terme]] <>\"\",IF(DonnéesDeProspect[[#This Row],[Prévision \nà court terme]] = \"Avril\",DonnéesDeProspect[Prévision \npondérée],0),\"\"),\"\")","v":""},{"$f":"IFERROR(IF(DonnéesDeProspect[[#This Row],[Prévision \nà court terme]] <>\"\",IF(DonnéesDeProspect[[#This Row],[Prévision \nà court terme]] = \"Mai\",DonnéesDeProspect[Prévision \npondérée],0),\"\"),\"\")","v":""},{"$f":"IFERROR(IF(DonnéesDeProspect[[#This Row],[Prévision \nà court terme]] <>\"\",IF(DonnéesDeProspect[[#This Row],[Prévision \nà court terme]] = \"Juin\",DonnéesDeProspect[Prévision \npondérée],0),\"\"),\"\")","v":""},{"$f":"IFERROR(IF(DonnéesDeProspect[[#This Row],[Prévision \nà court terme]] <>\"\",IF(DonnéesDeProspect[[#This Row],[Prévision \nà court terme]] = \"Juillet\",DonnéesDeProspect[Prévision \npondérée],0),\"\"),\"\")","v":""},{"$f":"IFERROR(IF(DonnéesDeProspect[[#This Row],[Prévision \nà court terme]] <>\"\",IF(DonnéesDeProspect[[#This Row],[Prévision \nà court terme]] = \"Août\",DonnéesDeProspect[Prévision \npondérée],0),\"\"),\"\")","v":""},{"$f":"IFERROR(IF(DonnéesDeProspect[[#This Row],[Prévision \nà court terme]] <>\"\",IF(DonnéesDeProspect[[#This Row],[Prévision \nà court terme]] = \"Septembre\",DonnéesDeProspect[Prévision \npondérée],0),\"\"),\"\")","v":""},{"$f":"IFERROR(IF(DonnéesDeProspect[[#This Row],[Prévision \nà court terme]] <>\"\",IF(DonnéesDeProspect[[#This Row],[Prévision \nà court terme]] = \"Octobre\",DonnéesDeProspect[Prévision \npondérée],0),\"\"),\"\")","v":""},{"$f":"IFERROR(IF(DonnéesDeProspect[[#This Row],[Prévision \nà court terme]] <>\"\",IF(DonnéesDeProspect[[#This Row],[Prévision \nà court terme]] = \"Novembre\",DonnéesDeProspect[Prévision \npondérée],0),\"\"),\"\")","v":""},{"$f":"IFERROR(IF(DonnéesDeProspect[[#This Row],[Prévision \nà court terme]] <>\"\",IF(DonnéesDeProspect[[#This Row],[Prévision \nà court terme]] = \"Décembre\",DonnéesDeProspect[Prévision \npondérée],0),\"\"),\"\")","v":""}]
[null,{"$f":"IFERROR(IF(AND(DonnéesDeProspect[[#This Row],[Nom du responsable]] <> \"\", ROW(VentesPrévues[Nom du prospect])<>DernièreEntrée),DonnéesDeProspect[Nom du responsable], \"\"),\"\")","v":""},{"$f":"IFERROR(IF(DonnéesDeProspect[[#This Row],[Prévision \nà court terme]] <>\"\",IF(DonnéesDeProspect[[#This Row],[Prévision \nà court terme]]= \"Janvier\",DonnéesDeProspect[Prévision \npondérée],0),\"\"),\"\")","v":""},{"$f":"IFERROR(IF(DonnéesDeProspect[[#This Row],[Prévision \nà court terme]] <>\"\",IF(DonnéesDeProspect[[#This Row],[Prévision \nà court terme]] = \"Février\",DonnéesDeProspect[Prévision \npondérée],0),\"\"),\"\")","v":""},{"$f":"IFERROR(IF(DonnéesDeProspect[[#This Row],[Prévision \nà court terme]] <>\"\",IF(DonnéesDeProspect[[#This Row],[Prévision \nà court terme]] = \"Mars\",DonnéesDeProspect[Prévision \npondérée],0),\"\"),\"\")","v":""},{"$f":"IFERROR(IF(DonnéesDeProspect[[#This Row],[Prévision \nà court terme]] <>\"\",IF(DonnéesDeProspect[[#This Row],[Prévision \nà court terme]] = \"Avril\",DonnéesDeProspect[Prévision \npondérée],0),\"\"),\"\")","v":""},{"$f":"IFERROR(IF(DonnéesDeProspect[[#This Row],[Prévision \nà court terme]] <>\"\",IF(DonnéesDeProspect[[#This Row],[Prévision \nà court terme]] = \"Mai\",DonnéesDeProspect[Prévision \npondérée],0),\"\"),\"\")","v":""},{"$f":"IFERROR(IF(DonnéesDeProspect[[#This Row],[Prévision \nà court terme]] <>\"\",IF(DonnéesDeProspect[[#This Row],[Prévision \nà court terme]] = \"Juin\",DonnéesDeProspect[Prévision \npondérée],0),\"\"),\"\")","v":""},{"$f":"IFERROR(IF(DonnéesDeProspect[[#This Row],[Prévision \nà court terme]] <>\"\",IF(DonnéesDeProspect[[#This Row],[Prévision \nà court terme]] = \"Juillet\",DonnéesDeProspect[Prévision \npondérée],0),\"\"),\"\")","v":""},{"$f":"IFERROR(IF(DonnéesDeProspect[[#This Row],[Prévision \nà court terme]] <>\"\",IF(DonnéesDeProspect[[#This Row],[Prévision \nà court terme]] = \"Août\",DonnéesDeProspect[Prévision \npondérée],0),\"\"),\"\")","v":""},{"$f":"IFERROR(IF(DonnéesDeProspect[[#This Row],[Prévision \nà court terme]] <>\"\",IF(DonnéesDeProspect[[#This Row],[Prévision \nà court terme]] = \"Septembre\",DonnéesDeProspect[Prévision \npondérée],0),\"\"),\"\")","v":""},{"$f":"IFERROR(IF(DonnéesDeProspect[[#This Row],[Prévision \nà court terme]] <>\"\",IF(DonnéesDeProspect[[#This Row],[Prévision \nà court terme]] = \"Octobre\",DonnéesDeProspect[Prévision \npondérée],0),\"\"),\"\")","v":""},{"$f":"IFERROR(IF(DonnéesDeProspect[[#This Row],[Prévision \nà court terme]] <>\"\",IF(DonnéesDeProspect[[#This Row],[Prévision \nà court terme]] = \"Novembre\",DonnéesDeProspect[Prévision \npondérée],0),\"\"),\"\")","v":""},{"$f":"IFERROR(IF(DonnéesDeProspect[[#This Row],[Prévision \nà court terme]] <>\"\",IF(DonnéesDeProspect[[#This Row],[Prévision \nà court terme]] = \"Décembre\",DonnéesDeProspect[Prévision \npondérée],0),\"\"),\"\")","v":""}]
[null,{"$f":"IFERROR(IF(AND(DonnéesDeProspect[[#This Row],[Nom du responsable]] <> \"\", ROW(VentesPrévues[Nom du prospect])<>DernièreEntrée),DonnéesDeProspect[Nom du responsable], \"\"),\"\")","v":""},{"$f":"IFERROR(IF(DonnéesDeProspect[[#This Row],[Prévision \nà court terme]] <>\"\",IF(DonnéesDeProspect[[#This Row],[Prévision \nà court terme]]= \"Janvier\",DonnéesDeProspect[Prévision \npondérée],0),\"\"),\"\")","v":""},{"$f":"IFERROR(IF(DonnéesDeProspect[[#This Row],[Prévision \nà court terme]] <>\"\",IF(DonnéesDeProspect[[#This Row],[Prévision \nà court terme]] = \"Février\",DonnéesDeProspect[Prévision \npondérée],0),\"\"),\"\")","v":""},{"$f":"IFERROR(IF(DonnéesDeProspect[[#This Row],[Prévision \nà court terme]] <>\"\",IF(DonnéesDeProspect[[#This Row],[Prévision \nà court terme]] = \"Mars\",DonnéesDeProspect[Prévision \npondérée],0),\"\"),\"\")","v":""},{"$f":"IFERROR(IF(DonnéesDeProspect[[#This Row],[Prévision \nà court terme]] <>\"\",IF(DonnéesDeProspect[[#This Row],[Prévision \nà court terme]] = \"Avril\",DonnéesDeProspect[Prévision \npondérée],0),\"\"),\"\")","v":""},{"$f":"IFERROR(IF(DonnéesDeProspect[[#This Row],[Prévision \nà court terme]] <>\"\",IF(DonnéesDeProspect[[#This Row],[Prévision \nà court terme]] = \"Mai\",DonnéesDeProspect[Prévision \npondérée],0),\"\"),\"\")","v":""},{"$f":"IFERROR(IF(DonnéesDeProspect[[#This Row],[Prévision \nà court terme]] <>\"\",IF(DonnéesDeProspect[[#This Row],[Prévision \nà court terme]] = \"Juin\",DonnéesDeProspect[Prévision \npondérée],0),\"\"),\"\")","v":""},{"$f":"IFERROR(IF(DonnéesDeProspect[[#This Row],[Prévision \nà court terme]] <>\"\",IF(DonnéesDeProspect[[#This Row],[Prévision \nà court terme]] = \"Juillet\",DonnéesDeProspect[Prévision \npondérée],0),\"\"),\"\")","v":""},{"$f":"IFERROR(IF(DonnéesDeProspect[[#This Row],[Prévision \nà court terme]] <>\"\",IF(DonnéesDeProspect[[#This Row],[Prévision \nà court terme]] = \"Août\",DonnéesDeProspect[Prévision \npondérée],0),\"\"),\"\")","v":""},{"$f":"IFERROR(IF(DonnéesDeProspect[[#This Row],[Prévision \nà court terme]] <>\"\",IF(DonnéesDeProspect[[#This Row],[Prévision \nà court terme]] = \"Septembre\",DonnéesDeProspect[Prévision \npondérée],0),\"\"),\"\")","v":""},{"$f":"IFERROR(IF(DonnéesDeProspect[[#This Row],[Prévision \nà court terme]] <>\"\",IF(DonnéesDeProspect[[#This Row],[Prévision \nà court terme]] = \"Octobre\",DonnéesDeProspect[Prévision \npondérée],0),\"\"),\"\")","v":""},{"$f":"IFERROR(IF(DonnéesDeProspect[[#This Row],[Prévision \nà court terme]] <>\"\",IF(DonnéesDeProspect[[#This Row],[Prévision \nà court terme]] = \"Novembre\",DonnéesDeProspect[Prévision \npondérée],0),\"\"),\"\")","v":""},{"$f":"IFERROR(IF(DonnéesDeProspect[[#This Row],[Prévision \nà court terme]] <>\"\",IF(DonnéesDeProspect[[#This Row],[Prévision \nà court terme]] = \"Décembre\",DonnéesDeProspect[Prévision \npondérée],0),\"\"),\"\")","v":""}]
[null,{"$f":"IFERROR(IF(AND(DonnéesDeProspect[[#This Row],[Nom du responsable]] <> \"\", ROW(VentesPrévues[Nom du prospect])<>DernièreEntrée),DonnéesDeProspect[Nom du responsable], \"\"),\"\")","v":""},{"$f":"IFERROR(IF(DonnéesDeProspect[[#This Row],[Prévision \nà court terme]] <>\"\",IF(DonnéesDeProspect[[#This Row],[Prévision \nà court terme]]= \"Janvier\",DonnéesDeProspect[Prévision \npondérée],0),\"\"),\"\")","v":""},{"$f":"IFERROR(IF(DonnéesDeProspect[[#This Row],[Prévision \nà court terme]] <>\"\",IF(DonnéesDeProspect[[#This Row],[Prévision \nà court terme]] = \"Février\",DonnéesDeProspect[Prévision \npondérée],0),\"\"),\"\")","v":""},{"$f":"IFERROR(IF(DonnéesDeProspect[[#This Row],[Prévision \nà court terme]] <>\"\",IF(DonnéesDeProspect[[#This Row],[Prévision \nà court terme]] = \"Mars\",DonnéesDeProspect[Prévision \npondérée],0),\"\"),\"\")","v":""},{"$f":"IFERROR(IF(DonnéesDeProspect[[#This Row],[Prévision \nà court terme]] <>\"\",IF(DonnéesDeProspect[[#This Row],[Prévision \nà court terme]] = \"Avril\",DonnéesDeProspect[Prévision \npondérée],0),\"\"),\"\")","v":""},{"$f":"IFERROR(IF(DonnéesDeProspect[[#This Row],[Prévision \nà court terme]] <>\"\",IF(DonnéesDeProspect[[#This Row],[Prévision \nà court terme]] = \"Mai\",DonnéesDeProspect[Prévision \npondérée],0),\"\"),\"\")","v":""},{"$f":"IFERROR(IF(DonnéesDeProspect[[#This Row],[Prévision \nà court terme]] <>\"\",IF(DonnéesDeProspect[[#This Row],[Prévision \nà court terme]] = \"Juin\",DonnéesDeProspect[Prévision \npondérée],0),\"\"),\"\")","v":""},{"$f":"IFERROR(IF(DonnéesDeProspect[[#This Row],[Prévision \nà court terme]] <>\"\",IF(DonnéesDeProspect[[#This Row],[Prévision \nà court terme]] = \"Juillet\",DonnéesDeProspect[Prévision \npondérée],0),\"\"),\"\")","v":""},{"$f":"IFERROR(IF(DonnéesDeProspect[[#This Row],[Prévision \nà court terme]] <>\"\",IF(DonnéesDeProspect[[#This Row],[Prévision \nà court terme]] = \"Août\",DonnéesDeProspect[Prévision \npondérée],0),\"\"),\"\")","v":""},{"$f":"IFERROR(IF(DonnéesDeProspect[[#This Row],[Prévision \nà court terme]] <>\"\",IF(DonnéesDeProspect[[#This Row],[Prévision \nà court terme]] = \"Septembre\",DonnéesDeProspect[Prévision \npondérée],0),\"\"),\"\")","v":""},{"$f":"IFERROR(IF(DonnéesDeProspect[[#This Row],[Prévision \nà court terme]] <>\"\",IF(DonnéesDeProspect[[#This Row],[Prévision \nà court terme]] = \"Octobre\",DonnéesDeProspect[Prévision \npondérée],0),\"\"),\"\")","v":""},{"$f":"IFERROR(IF(DonnéesDeProspect[[#This Row],[Prévision \nà court terme]] <>\"\",IF(DonnéesDeProspect[[#This Row],[Prévision \nà court terme]] = \"Novembre\",DonnéesDeProspect[Prévision \npondérée],0),\"\"),\"\")","v":""},{"$f":"IFERROR(IF(DonnéesDeProspect[[#This Row],[Prévision \nà court terme]] <>\"\",IF(DonnéesDeProspect[[#This Row],[Prévision \nà court terme]] = \"Décembre\",DonnéesDeProspect[Prévision \npondérée],0),\"\"),\"\")","v":""}]
[null,"Total",{"$f":"SUBTOTAL(109,VentesPrévues[Janvier \nPrévision])","v":{"v":270000,"d":"270,000 €"}},{"$f":"SUBTOTAL(109,VentesPrévues[Février \nPrévision])","v":{"v":20000,"d":"20,000 €"}},{"$f":"SUBTOTAL(109,VentesPrévues[Mars \nPrévision])","v":{"v":20000,"d":"20,000 €"}},{"$f":"SUBTOTAL(109,VentesPrévues[Avril \nPrévision])","v":{"v":0,"d":"0 €"}},{"$f":"SUBTOTAL(109,VentesPrévues[Mai \nPrévision])","v":{"v":0,"d":"0 €"}},{"$f":"SUBTOTAL(109,VentesPrévues[Juin \nPrévision])","v":{"v":0,"d":"0 €"}},{"$f":"SUBTOTAL(109,VentesPrévues[Juillet\nPrévision])","v":{"v":0,"d":"0 €"}},{"$f":"SUBTOTAL(109,VentesPrévues[Août \nPrévision])","v":{"v":0,"d":"0 €"}},{"$f":"SUBTOTAL(109,VentesPrévues[Septembre \nPrévision])","v":{"v":0,"d":"0 €"}},{"$f":"SUBTOTAL(109,VentesPrévues[Octobre \nPrévision])","v":{"v":0,"d":"0 €"}},{"$f":"SUBTOTAL(109,VentesPrévues[Novembre \nPrévision])","v":{"v":0,"d":"0 €"}},{"$f":"SUBTOTAL(109,VentesPrévues[Décembre \nPrévision])","v":{"v":0,"d":"0 €"}}]
[null,"Total cumulé",{"$f":"C20","v":{"v":270000,"d":"270,000 €"}},{"$f":"C21+D20","v":{"v":290000,"d":"290,000 €"}},{"$f":"D21+E20","v":{"v":310000,"d":"310,000 €"}},{"$f":"E21+F20","v":{"v":310000,"d":"310,000 €"}},{"$f":"F21+G20","v":{"v":310000,"d":"310,000 €"}},{"$f":"G21+H20","v":{"v":310000,"d":"310,000 €"}},{"$f":"H21+I20","v":{"v":310000,"d":"310,000 €"}},{"$f":"I21+J20","v":{"v":310000,"d":"310,000 €"}},{"$f":"J21+K20","v":{"v":310000,"d":"310,000 €"}},{"$f":"K21+L20","v":{"v":310000,"d":"310,000 €"}},{"$f":"L21+M20","v":{"v":310000,"d":"310,000 €"}},{"$f":"M21+N20","v":{"v":310000,"d":"310,000 €"}}]

{"sheet":"Prévision pondérée mensuelle","index":2,"n_rows":3,"n_cols":2,"rows_kept":3}
[null,{"$f":"Nom_de_la_société","v":"Nom de la société"}]
[null,"Prévision mensuelle pondérée"]
[null," "]